bitfinex-derivatives/quotes_SOLF0:USTF0_20260127
["timestamp","ask_amount","ask_price","bid_price","bid_amount"]
[1769511251146,10.51028204,123.8,123.76,3.41781811]
[1769511251341,10.51028204,123.8,123.74,18.25898894]
[1769511251537,10.51028204,123.8,123.75,3.41781811]
[1769511253652,3.23068204,123.78,123.74,7.55817083]
[1769511253851,3.23068204,123.78,123.73,18.25958894]
[1769511254355,3.23068204,123.78,123.73,10.70141811]
[1769511254550,10.51148204,123.78,123.73,3.41781811]
[1769511255552,7.2815,123.77,123.73,3.41781811]
[1769511255955,10.51218204,123.77,123.71,302.13781811]
[1769511256348,10.51218204,123.77,123.72,3.41781811]
[1769511256953,3.23068204,123.75,123.7,10.97598894]
[1769511257157,3.23068204,123.74,123.69,18.26148894]
[1769511257459,3.23068204,123.74,123.69,10.70331811]
[1769511266461,8.99054474,123.75,123.7,3.53286032]
[1769511266657,12.4845374,123.75,123.7,3.53286032]
[1769511270564,3.49399266,123.75,123.7,3.53286032]
[1769511272866,10.77679266,123.75,123.7,3.53286032]
[1769511273166,5.2020374,123.77,123.71,3.53286032]
[1769511273662,3.49399266,123.77,123.71,3.53286032]
[1769511274865,10.77559266,123.77,123.71,5.24090506]
[1769511275160,3.49399266,123.78,123.73,3.53286032]
[1769511275966,3.49399266,123.77,123.72,1.70804474]
[1769511276162,3.49399266,123.77,123.72,3.53286032]
[1769511276362,3.49399266,123.77,123.72,5.24090506]
[1769511276958,10.77529266,123.77,123.72,5.24090506]
[1769511277666,10.77529266,123.77,123.72,5.24176383]
[1769511278463,3.49399266,123.77,123.72,5.24176383]
[1769511279265,3.49399266,123.77,123.73,1.70890351]
[1769511279664,3.49399266,123.77,123.72,5.24176383]
[1769511280267,3.49399266,123.77,123.73,3.53286032]
[1769511281771,3.49399266,123.77,123.73,5.24176383]
[1769511288276,3.49399266,123.77,123.73,3.53286032]
[1769511296891,3.49399266,123.77,123.73,10.81646032]
[1769511299782,3.39276468,123.78,123.73,12.52536383]
[1769511300887,3.39276468,123.78,123.73,10.81646032]
[1769511301085,3.39276468,123.78,123.74,7.2829]
[1769511302091,8.98850351,123.8,123.75,3.50153855]
[1769511302092,3.39276468,123.8,123.75,3.50153855]
[1769511302288,3.39276468,123.8,123.75,5.21044206]
[1769511302879,3.39276468,123.8,123.76,7.2819]
[1769511303080,3.39276468,123.82,123.77,5.21044206]
[1769511303293,3.39276468,123.82,123.78,5.21044206]
[1769511303589,3.39276468,123.84,123.78,12.49114206]
[1769511303791,7.2772,123.85,123.8,5.21044206]
[1769511303992,10.66996468,123.85,123.8,3.50153855]
[1769511304395,3.39276468,123.85,123.8,3.50153855]
[1769511308692,3.39276468,123.84,123.8,3.50153855]
[1769511309692,3.39276468,123.84,123.79,7.2801]
[1769511309997,5.10166819,123.83,123.78,3.50153855]
[1769511310397,3.39276468,123.82,123.78,3.50153855]
[1769511310695,5.10166819,123.82,123.77,7.2807]
[1769511312103,5.10166819,123.81,123.76,10.78293855]
[1769511313609,3.39276468,123.81,123.76,10.78293855]
[1769511313908,5.10166819,123.81,123.76,10.78293855]
[1769511315209,3.39276468,123.81,123.76,10.78293855]
[1769511321715,3.20692952,123.8,123.74,269.91349112]
[1769511322914,10.48662952,123.8,123.74,269.91349112]
[1769511323413,10.48662952,123.8,123.75,3.28198761]
[1769511325214,7.2797,123.8,123.76,4.948441]
[1769511325417,7.2797,123.8,123.76,3.23953749]
[1769511327510,7.279,123.81,123.76,3.23953749]
[1769511327710,7.279,123.81,123.77,3.23953749]
[1769511333521,10.68732912,123.81,123.77,3.23953749]
[1769511333721,10.68732912,123.81,123.75,12.230841]
[1769511334320,10.68732912,123.81,123.76,3.23953749]
[1769511344226,10.68802912,123.8,123.75,7.2824]
[1769511344628,10.68802912,123.8,123.75,10.52193749]
[1769511364449,3.37336399,123.78,123.74,7.54564094]
[1769511364644,3.37336399,123.78,123.73,18.15509422]
[1769511365241,3.37336399,123.78,123.73,10.60945328]
[1769511366248,3.37336399,123.77,123.72,7.54564094]
[1769511366639,3.37336399,123.77,123.71,314.87149422]
[1769511366843,5.08151916,123.77,123.71,314.87149422]
[1769511368047,12.36301916,123.77,123.71,322.15619422]
[1769511368247,12.36301916,123.77,123.71,314.61055328]
[1769511368448,12.36301916,123.77,123.71,322.15619422]
[1769511369147,10.65486399,123.77,123.71,322.15619422]
[1769511370049,10.65486399,123.77,123.71,314.61055328]
[1769511371250,12.36301916,123.77,123.71,314.61055328]
[1769511373849,3.37336399,123.76,123.71,314.61055328]
[1769511376754,3.37336399,123.76,123.71,316.31870845]
[1769511377957,10.65546399,123.76,123.71,3.32585328]
[1769511378253,3.37336399,123.75,123.71,3.32585328]
[1769511378651,3.37336399,123.75,123.69,326.08564939]
[1769511378958,3.37336399,123.75,123.69,318.54000845]
[1769511379155,3.37336399,123.75,123.7,5.03400845]
[1769511379456,3.37336399,123.75,123.7,3.32585328]
[1769511379653,3.37336399,123.75,123.7,5.03400845]
[1769511380157,3.37336399,123.75,123.7,3.32585328]
[1769511382457,3.37336399,123.75,123.7,10.61115328]
[1769511384258,3.37336399,123.75,123.71,3.4076155]
[1769511390966,3.37336399,123.75,123.7,7.2853]
[1769511391266,3.37336399,123.75,123.7,10.6929155]
[1769511391766,3.37336399,123.75,123.7,12.40107067]
[1769511394469,3.37336399,123.75,123.7,10.6929155]
[1769511395670,3.37336399,123.75,123.7,12.40107067]
[1769511395869,10.65596399,123.75,123.7,10.6929155]
[1769511396370,10.65596399,123.75,123.7,3.4076155]
[1769511401179,10.55480965,123.76,123.71,5.11729426]
[1769511401374,10.55480965,123.76,123.71,3.4076155]
[1769511402079,3.27290965,123.75,123.71,3.4076155]
[1769511404680,3.27290965,123.75,123.69,318.62329426]
[1769511404880,3.27290965,123.74,123.69,318.62329426]
[1769511406079,3.27290965,123.74,123.69,12.40329426]
[1769511408084,3.27290965,123.74,123.69,10.6936155]
[1769511409479,10.55610965,123.74,123.69,3.4076155]
[1769511413284,7.2825,123.75,123.7,3.4076155]
[1769511413488,7.2825,123.75,123.7,5.11729426]
[1769511413884,10.55430965,123.77,123.71,12.40209426]
[1769511414787,3.40791368,123.76,123.71,12.40209426]
[1769511414986,10.68981368,123.76,123.71,3.4076155]
[1769511415287,10.68981368,123.76,123.71,5.11729426]
[1769511416791,10.68981368,123.76,123.71,3.4076155]
[1769511420496,10.69041368,123.75,123.71,3.4076155]
[1769511421290,10.69041368,123.75,123.69,4.9441518]
[1769511423096,10.69041368,123.75,123.7,3.23447304]
[1769511423504,10.68971368,123.77,123.7,3.23447304]
[1769511423800,3.40791368,123.77,123.71,3.23447304]
[1769511424901,7.2819,123.76,123.71,3.23447304]
[1769511427307,5.11759244,123.77,123.71,10.51917304]
[1769511427805,3.40791368,123.77,123.71,10.51917304]
[1769511428904,10.68961368,123.77,123.71,10.51917304]
[1769511438522,12.39929244,123.77,123.71,10.51917304]
[1769511438719,3.40791368,123.76,123.71,10.51917304]
[1769511439421,7.2817,123.77,123.72,3.23447304]
[1769511440120,10.68871368,123.78,123.73,3.23447304]
[1769511443727,3.40747677,123.76,123.71,3.2005697]
[1769511445017,10.68937677,123.76,123.71,3.2005697]
[1769511450727,10.68937677,123.76,123.71,4.91024846]
[1769511453538,3.44571925,123.75,123.71,3.2005697]
[1769511453730,3.44571925,123.75,123.7,10.68370293]
[1769511454727,5.15539801,123.77,123.71,10.68360293]
[1769511455930,12.43669801,123.77,123.71,10.68360293]
[1769511459538,10.72701925,123.77,123.71,10.68360293]
[1769511463339,10.72701925,123.77,123.72,3.39880293]
[1769511464237,3.44571925,123.77,123.72,10.68290293]
[1769511468143,3.44571925,123.77,123.73,3.39880293]
[1769511469747,10.72631925,123.79,123.73,3.39880293]
[1769511470244,3.44571925,123.78,123.73,3.39880293]
[1769511472143,3.44571925,123.78,123.73,10.68240293]
[1769511472647,3.44571925,123.78,123.73,12.39162867]
[1769511474745,7.2806,123.79,123.74,3.32282321]
[1769511475246,10.53454963,123.79,123.74,3.32282321]
[1769511481049,3.25394963,123.78,123.74,5.03204895]
[1769511481454,3.25394963,123.78,123.74,3.32282321]
[1769511482154,3.25394963,123.77,123.72,10.89553622]
[1769511482357,3.25394963,123.77,123.73,3.32282321]
[1769511486054,3.25394963,123.77,123.73,10.60642321]
[1769511491466,8.98942574,123.79,123.73,10.60642321]
[1769511491467,12.24337537,123.79,123.74,7.283]
[1769511491660,3.25394963,123.78,123.74,7.283]
[1769511501868,3.25394963,123.78,123.74,10.77133171]
[1769511506081,12.48757069,123.8,123.74,10.77133171]
[1769511506279,10.77834495,123.8,123.74,10.77133171]
[1769511506583,3.49874495,123.8,123.75,7.2823]
[1769511508885,5.20797069,123.8,123.75,7.2823]
[1769511511488,3.49874495,123.8,123.75,10.68543421]
[1769511520902,3.49874495,123.8,123.75,3.40313421]
[1769511525101,12.48686376,123.8,123.75,3.40313421]
[1769511526308,7.2801,123.79,123.75,3.40313421]
[1769511536208,10.65707105,123.79,123.75,3.40313421]
[1769511555630,10.65707105,123.79,123.74,7.283]
[1769511555828,10.65707105,123.79,123.74,10.56300346]
[1769511557124,10.65707105,123.79,123.74,3.28000346]
[1769511559033,10.65787105,123.78,123.74,3.28000346]
[1769511563936,10.65787105,123.78,123.73,14.8587592]
[1769511564431,10.65787105,123.78,123.73,18.13293294]
[1769511566236,10.65787105,123.78,123.74,3.27417374]
[1769511571433,1.70831881,123.8,123.74,10.55717374]
[1769511571434,10.62178802,123.8,123.74,10.55717374]
[1769511571639,10.62178802,123.8,123.75,4.98249255]
[1769511572635,10.62178802,123.8,123.75,3.27417374]
[1769511575641,10.62178802,123.8,123.75,10.55657374]
[1769511578644,10.62178802,123.8,123.75,12.26489255]
[1769511579246,10.62178802,123.8,123.75,10.55657374]
[1769511584653,5.05000756,123.78,123.74,7.5751592]
[1769511584854,5.05000756,123.77,123.72,10.84933294]
[1769511585055,3.34178802,123.76,123.71,7.5751592]
[1769511585255,5.05000756,123.76,123.71,10.84933294]
[1769511585457,5.05000756,123.76,123.72,7.2841]
[1769511586154,5.05000756,123.76,123.71,18.13413294]
[1769511587653,3.34178802,123.73,123.7,7.5751592]
[1769511587857,5.05000756,123.73,123.69,14.8605592]
[1769511588357,5.05000756,123.73,123.69,7.2854]
[1769511588560,3.34178802,123.73,123.69,7.2854]
[1769511592863,3.34178802,123.73,123.68,3.27417374]
[1769511594053,3.34178802,123.73,123.68,10.56067374]
[1769511594257,3.34178802,123.73,123.68,12.26889328]
[1769511595264,3.38958353,123.73,123.67,3.29080386]
[1769511595464,3.38958353,123.73,123.68,1.70821954]
[1769511596859,3.38958353,123.73,123.67,4.9990234]
[1769511597064,3.38958353,123.73,123.68,7.2865]
[1769511598457,3.38958353,123.73,123.68,10.57730386]
[1769511600066,3.38958353,123.73,123.68,12.2855234]
[1769511601671,10.67208353,123.75,123.69,3.29080386]
[1769511601968,3.38958353,123.74,123.69,3.29080386]
[1769511607675,3.38958353,123.76,123.7,4.9990234]
[1769511607967,3.38958353,123.76,123.71,1.70821954]
[1769511609380,3.38958353,123.76,123.71,8.99281954]
[1769511610678,3.38958353,123.76,123.72,4.9990234]
[1769511610872,3.38958353,123.76,123.73,1.70821954]
[1769511612572,3.38958353,123.76,123.72,3.29080386]
[1769511612871,3.38958353,123.76,123.72,4.9990234]
[1769511614275,3.38958353,123.75,123.7,3.29080386]
[1769511616274,3.38958353,123.74,123.7,3.29080386]
[1769511617082,3.38958353,123.74,123.69,7.2855]
[1769511617274,3.38958353,123.74,123.69,10.57630386]
[1769511617581,3.38958353,123.74,123.69,12.2845234]
[1769511621180,3.38958353,123.74,123.7,3.29080386]
[1769511621782,3.38958353,123.74,123.7,10.57610386]
[1769511621986,10.58167583,123.76,123.7,12.2843234]
[1769511622680,3.29977583,123.75,123.7,12.2843234]
[1769511622881,3.29977583,123.75,123.71,7.2847]
[1769511628983,7.2816,123.77,123.72,7.2842]
[1769511628984,3.19935121,123.77,123.72,7.2842]
[1769511629692,3.19935121,123.77,123.72,10.77380391]
[1769511629990,3.19935121,123.77,123.72,12.48202345]
[1769511631191,3.19935121,123.77,123.72,10.77380391]
[1769511635790,7.2809,123.78,123.73,3.48960391]
[1769511635992,134.49955121,123.79,123.73,10.77330391]
[1769511636493,3.19935121,123.78,123.73,10.77330391]
[1769511636895,3.19935121,123.78,123.74,3.48960391]
[1769511637899,3.19935121,123.8,123.75,3.48960391]
[1769511638498,3.19935121,123.79,123.75,3.48960391]
[1769511645001,3.19935121,123.79,123.74,7.2829]
[1769511645600,10.47955121,123.79,123.73,3.48960391]
[1769511645796,3.19935121,123.77,123.73,3.48960391]
[1769511648303,3.19935121,123.77,123.73,10.77320391]
[1769511650008,3.19935121,123.77,123.73,3.48960391]
[1769511660616,3.40634771,123.82,123.76,4.98852222]
[1769511660915,3.40634771,123.82,123.76,3.28007715]
[1769511661120,10.68534771,123.81,123.76,3.28007715]
[1769511662412,3.40634771,123.8,123.76,3.28007715]
[1769511665818,3.40634771,123.8,123.74,12.27102222]
[1769511666019,3.40634771,123.8,123.75,3.28007715]
[1769511666519,10.68604771,123.8,123.75,3.28007715]
[1769511666917,3.40634771,123.79,123.74,7.2825]
[1769511667316,3.40634771,123.79,123.74,10.56257715]
[1769511669325,3.40634771,123.79,123.75,3.28007715]
[1769511696149,7.2797,123.8,123.76,3.22884311]
[1769511696943,10.49032854,123.8,123.76,3.22884311]
[1769511698646,10.49032854,123.8,123.74,12.22028818]
[1769511698848,10.49032854,123.8,123.75,3.22884311]
[1769511702545,10.49092854,123.79,123.74,7.283]
[1769511703251,10.49092854,123.79,123.74,10.51184311]
[1769511706857,10.49092854,123.79,123.74,18.08299774]
[1769511707059,10.49092854,123.79,123.74,10.51184311]
[1769511707452,10.49092854,123.79,123.74,18.08299774]
[1769511710960,3.21062854,123.79,123.75,10.51124311]
[1769511711261,12.1984293,123.81,123.75,3.22884311]
[1769511711856,3.21062854,123.8,123.75,3.22884311]
[1769511712962,3.21062854,123.8,123.76,7.2817]
[1769511715964,3.21062854,123.8,123.76,3.27781213]
[1769511716165,3.21062854,123.8,123.74,12.55746752]
[1769511716465,3.21062854,123.8,123.75,3.27781213]
[1769511717368,3.32209954,123.79,123.74,7.57115463]
[1769511717670,5.0306003,123.79,123.73,18.13206676]
[1769511718161,5.0306003,123.79,123.74,3.27781213]
[1769511718162,3.32209954,123.79,123.74,3.27781213]
[1769511718868,10.60229954,123.79,123.74,3.27781213]
[1769511726276,10.60229954,123.79,123.74,10.84896676]
[1769511726773,3.32209954,123.78,123.74,7.57115463]
[1769511727071,3.32209954,123.78,123.71,7.57115463]
[1769511727072,1.70850076,123.77,123.71,7.57115463]
[1769511727278,3.32209954,123.76,123.7,10.84896676]
[1769511728965,10.60429954,123.76,123.71,7.2847]
[1769511729975,12.3128003,123.76,123.71,7.2847]
[1769511730375,3.32209954,123.75,123.7,18.13436676]
[1769511730570,3.32209954,123.75,123.7,10.56321213]
[1769511740180,12.3132003,123.75,123.7,3.27781213]
[1769511742983,10.60469954,123.75,123.7,3.27781213]
[1769511744185,10.60469954,123.75,123.7,4.98631289]
[1769511746586,3.41461913,123.74,123.69,7.286]
[1769511753298,3.41461913,123.74,123.69,10.60782248]
[1769511755903,3.41461913,123.74,123.72,4.0]
[1769511757704,3.41461913,123.74,123.69,10.60782248]
[1769511759508,3.41461913,123.74,123.69,12.31632324]
[1769511760611,3.41461913,123.74,123.69,10.60782248]
[1769511761712,3.41461913,123.73,123.67,10.89297711]
[1769511762013,3.41461913,123.73,123.67,5.03032324]
[1769511762212,3.41461913,123.72,123.67,3.32182248]
[1769511762911,3.41461913,123.69,123.64,3.32182248]
[1769511763101,3.41461913,123.69,123.64,5.03032324]
[1769511763509,3.41461913,123.69,123.65,5.03032324]
[1769511763717,3.41461913,123.71,123.67,3.32182248]
[1769511763904,3.41461913,123.73,123.68,5.03032324]
[1769511764414,10.69841913,123.73,123.68,5.03032324]
[1769511765210,3.41461913,123.72,123.68,3.32182248]
[1769511765908,3.41461913,123.72,123.67,1.71033811]
[1769511766211,3.41461913,123.72,123.67,5.03216059]
[1769511766907,3.41461913,123.72,123.68,3.32182248]
[1769511768799,7.2838,123.73,123.68,3.32182248]
[1769511769316,10.69841913,123.73,123.68,3.32182248]
[1769511771312,7.2833,123.74,123.69,3.32182248]
[1769511771511,7.2833,123.74,123.69,5.03216059]
[1769511772614,3.41461913,123.75,123.7,3.32182248]
[1769511773014,7.2823,123.76,123.7,3.32182248]
[1769511773211,7.2823,123.76,123.71,3.32182248]
[1769511773917,10.69691913,123.76,123.71,3.32182248]
[1769511775811,3.41461913,123.76,123.71,3.32182248]
[1769511776514,3.41461913,123.76,123.71,5.03216059]
[1769511776916,3.41461913,123.76,123.71,3.32182248]
[1769511783114,5.12495724,123.76,123.71,3.32182248]
[1769511786625,5.17464451,123.75,123.7,7.2854]
[1769511787522,5.17464451,123.75,123.7,10.48989178]
[1769511788225,3.4643064,123.75,123.7,10.48989178]
[1769511789421,10.7468064,123.75,123.7,3.20449178]
[1769511789625,3.4643064,123.74,123.7,3.20449178]
[1769511789823,3.4643064,123.74,123.69,7.2859]
[1769511790024,3.4643064,123.73,123.69,7.2859]
[1769511791725,3.4643064,123.73,123.69,10.49039178]
[1769511792040,12.45714451,123.75,123.69,10.49039178]
[1769511794122,10.7468064,123.75,123.7,3.20449178]
[1769511795626,3.4643064,123.75,123.7,3.20449178]
[1769511799927,3.4643064,123.75,123.7,10.48979178]
[1769511800227,7.282,123.76,123.71,3.20449178]
[1769511801235,10.6057678,123.76,123.71,3.20449178]
[1769511803136,3.3237678,123.76,123.71,10.48919178]
[1769511814849,3.3237678,123.76,123.72,3.5092309]
[1769511815145,3.3205203,123.78,123.73,3.5092309]
[1769511815737,3.3205203,123.77,123.72,7.2842]
[1769511816138,3.3205203,123.77,123.72,10.7934309]
[1769511822749,5.03085841,123.77,123.72,10.7934309]
[1769511823050,5.03085841,123.76,123.7,18.35796867]
[1769511823646,1.71033811,123.75,123.7,10.7942309]
[1769511823849,12.31275841,123.76,123.7,10.7942309]
[1769511824242,12.31275841,123.76,123.71,3.5092309]
[1769511827052,10.6024203,123.76,123.71,3.5092309]
[1769511827247,7.2819,123.76,123.72,3.5092309]
[1769511828950,3.3205203,123.77,123.72,3.5092309]
[1769511830158,3.3205203,123.77,123.72,12.50257701]
[1769511831956,3.3205203,123.79,123.73,10.7923309]
[1769511832260,3.3205203,123.79,123.73,5.21827701]
[1769511832560,3.3205203,123.79,123.74,3.5092309]
[1769511832951,3.3205203,123.79,123.74,10.7923309]
[1769511834460,3.3205203,123.79,123.75,7.2825]
[1769511834857,3.3205203,123.79,123.75,3.29151153]
[1769511838368,5.14314359,123.81,123.75,10.57401153]
[1769511838572,3.43409748,123.81,123.75,10.57401153]
[1769511838772,3.43409748,123.81,123.75,12.28305764]
[1769511839674,3.43409748,123.81,123.75,10.57401153]
[1769511839974,3.43409748,123.8,123.75,10.57401153]
[1769511841977,3.43409748,123.79,123.74,7.2831]
[1769511842276,3.43409748,123.79,123.74,10.57461153]
[1769511846174,4.8402149,123.84,123.76,3.29151153]
[1769511846380,5.14314359,123.83,123.76,3.29151153]
[1769511846677,5.14314359,123.82,123.76,3.29151153]
[1769511846878,12.42194359,123.82,123.76,3.29151153]
[1769511847372,3.43409748,123.81,123.76,3.29151153]
[1769511847583,3.43409748,123.8,123.74,10.57451153]
[1769511847966,3.43409748,123.8,123.75,3.29151153]
[1769511848875,3.43409748,123.8,123.75,10.57371153]
[1769511849581,3.43409748,123.84,123.77,3.29151153]
[1769511849767,3.43409748,123.83,123.77,3.29151153]
[1769511849971,5.14314359,123.83,123.77,3.29151153]
[1769511850777,1.70904611,123.82,123.77,3.29151153]
[1769511850978,5.14314359,123.82,123.77,3.29151153]
[1769511851278,1.70904611,123.81,123.77,3.29151153]
[1769511852073,3.43409748,123.82,123.77,3.29151153]
[1769511852282,5.14314359,123.82,123.77,3.29151153]
[1769511855285,12.42164359,123.82,123.77,3.29151153]
[1769511856585,10.71339748,123.81,123.75,10.57391153]
[1769511856885,3.43409748,123.8,123.75,10.57391153]
[1769511862780,3.43409748,123.8,123.76,3.2971936]
[1769511865485,10.71369748,123.8,123.76,3.2971936]
[1769511868595,10.71369748,123.8,123.75,7.2825]
[1769511870094,10.71369748,123.8,123.75,10.74438575]
[1769511870495,10.71369748,123.8,123.75,3.46188575]
[1769511871292,3.43432192,123.79,123.75,3.46188575]
[1769511872897,3.43432192,123.79,123.75,10.74428575]
[1769511877097,3.43432192,123.79,123.75,3.46188575]
[1769511878897,10.71392192,123.8,123.75,3.46188575]
[1769511885505,7.2796,123.8,123.75,3.46188575]
[1769511885705,10.71392192,123.8,123.75,3.46188575]
[1769511887003,10.71392192,123.8,123.75,5.17093186]
[1769511888810,10.71392192,123.8,123.75,3.46188575]
[1769511896415,10.71392192,123.8,123.75,11.02562352]
[1769511897713,10.71392192,123.8,123.75,3.46188575]
[1769511898316,10.71392192,123.8,123.75,11.02562352]
[1769511901622,3.43432192,123.8,123.76,3.43101325]
[1769511901820,10.74987111,123.82,123.76,12.70286789]
[1769511902018,3.47097111,123.81,123.76,12.70286789]
[1769511902516,3.47097111,123.81,123.76,19.98476789]
[1769511902717,10.75007111,123.81,123.76,10.99475102]
[1769511903326,3.47097111,123.81,123.76,10.99475102]
[1769511905324,3.47097111,123.81,123.76,18.27655102]
[1769511905527,7.2785,123.82,123.77,3.43101325]
[1769511905827,3.47097111,123.83,123.78,5.13913012]
[1769511906218,3.47097111,123.83,123.78,3.43101325]
[1769511910918,10.74877111,123.83,123.78,3.43101325]
[1769511914724,3.47097111,123.86,123.82,1.70811687]
[1769511915528,3.47097111,123.86,123.81,5.13913012]
[1769511919635,3.47097111,123.86,123.82,3.43101325]
[1769511924841,3.47097111,123.86,123.8,5.22995295]
[1769511925236,3.47097111,123.86,123.81,3.52183608]
[1769511930844,10.74717111,123.86,123.81,3.52183608]
[1769511932946,12.45528798,123.86,123.81,3.52183608]
[1769511933146,3.27869931,123.84,123.79,10.80173608]
[1769511934443,10.55479931,123.86,123.81,3.52183608]
[1769511939045,7.2761,123.86,123.81,3.52183608]
[1769511939349,7.2761,123.86,123.82,3.52183608]
[1769511943852,10.55479931,123.86,123.82,3.52183608]
[1769511947651,3.27869931,123.88,123.83,10.79963608]
[1769511947959,3.27869931,123.88,123.84,1.70811687]
[1769511948159,3.27869931,123.88,123.83,12.50775295]
[1769511948361,3.27869931,123.88,123.83,10.79963608]
[1769511948958,3.27869931,123.88,123.83,12.50775295]
[1769511949564,3.27869931,123.88,123.83,12.50540516]
[1769511950956,3.27869931,123.88,123.84,1.70576908]
[1769511951252,3.27869931,123.88,123.84,5.22760516]
[1769511951852,3.27869931,123.88,123.84,3.52183608]
[1769511952756,8.97946908,123.9,123.84,5.22760516]
[1769511952757,10.55239931,123.9,123.84,5.22760516]
[1769511953156,3.27869931,123.89,123.84,3.52183608]
[1769511958865,10.55299931,123.89,123.84,3.52183608]
[1769511960563,3.39588785,123.88,123.84,3.52183608]
[1769511963458,7.2743,123.89,123.84,5.22760516]
[1769511964265,7.2743,123.89,123.84,3.52183608]
[1769511965569,10.67018785,123.89,123.84,3.52183608]
[1769511967162,7.2737,123.9,123.85,3.30542467]
[1769511967562,10.66958785,123.9,123.85,3.30542467]
[1769511976076,7.2743,123.89,123.85,3.30542467]
[1769511976373,3.39588785,123.9,123.85,3.30542467]
[1769511978174,3.39588785,123.9,123.85,5.01119375]
[1769511978382,3.39588785,123.92,123.86,5.01119375]
[1769511979880,3.39588785,123.92,123.86,12.28709375]
[1769511981675,3.39588785,123.92,123.86,10.58132467]
[1769511981881,3.39588785,123.92,123.87,3.4661356]
[1769511982575,5.10165693,123.92,123.87,3.4661356]
[1769511983882,5.10165693,123.92,123.87,10.7414356]
[1769511988392,3.39588785,123.92,123.87,10.7414356]
[1769511988594,5.10165693,123.92,123.87,10.7414356]
[1769511988999,5.10165693,123.92,123.87,3.4661356]
[1769511989800,1.70576908,123.93,123.88,3.36304896]
[1769511990002,5.21659138,123.93,123.88,3.36304896]
[1769511991100,3.5108223,123.93,123.88,3.36304896]
[1769511993604,10.7828223,123.93,123.88,3.36304896]
[1769511997000,3.5108223,123.93,123.88,3.36304896]
[1769512000908,3.5108223,123.93,123.88,10.63784896]
[1769512004415,7.2714,123.94,123.89,3.36304896]
[1769512005009,10.7822223,123.94,123.89,3.36304896]
[1769512005515,12.48799138,123.94,123.89,3.36304896]
[1769512009716,12.48663627,123.94,123.89,3.36304896]
[1769512009915,12.48663627,123.94,123.89,10.63714896]
[1769512010821,5.21523627,123.94,123.89,10.63714896]
[1769512011116,5.21523627,123.94,123.9,7.2736]
[1769512011315,3.5108223,123.94,123.9,7.2736]
[1769512011512,3.5108223,123.94,123.89,3.36304896]
[1769512012221,3.5108223,123.94,123.91,7.273]
[1769512012419,3.5108223,123.94,123.89,3.36304896]
[1769512012921,3.5108223,123.94,123.9,7.2736]
[1769512023325,3.23660971,123.93,123.89,18.17058322]
[1769512023628,3.23660971,123.92,123.88,7.53333426]
[1769512023821,4.94102368,123.91,123.87,10.77557826]
[1769512024026,3.23660971,123.9,123.86,7.53333426]
[1769512024220,3.23660971,123.89,123.86,7.53333426]
[1769512024422,4.94102368,123.89,123.83,20.61424885]
[1769512025230,3.23660971,123.89,123.83,20.61424885]
[1769512025527,4.94102368,123.89,123.83,20.61424885]
[1769512026130,4.94102368,123.89,123.83,10.519544]
[1769512026631,12.21532368,123.89,123.83,10.519544]
[1769512027131,1.70441397,123.88,123.83,10.519544]
[1769512028635,12.21532368,123.89,123.83,10.519544]
[1769512029833,12.21532368,123.89,123.84,3.242244]
[1769512035031,10.51090971,123.89,123.84,3.242244]
[1769512042746,10.51090971,123.89,123.84,10.519344]
[1769512047352,7.2743,123.89,123.85,3.48810394]
[1769512048650,3.53034,123.9,123.85,3.48810394]
[1769512048847,3.53034,123.9,123.85,5.19251791]
[1769512049954,3.53034,123.9,123.86,7.276]
[1769512075882,3.41612209,123.89,123.83,3.36406934]
[1769512076083,3.41612209,123.88,123.83,3.36406934]
[1769512076474,10.69112209,123.88,123.83,3.36406934]
[1769512081186,10.69112209,123.88,123.81,10.09470485]
[1769512081187,3.41612209,123.86,123.81,22.44294006]
[1769512081388,3.41612209,123.86,123.81,12.34823521]
[1769512081780,3.41612209,123.86,123.81,10.64296934]
[1769512081985,3.41612209,123.85,123.8,300.3]
[1769512082990,3.41612209,123.85,123.81,7.2789]
[1769512084788,7.2755,123.87,123.81,10.64296934]
[1769512084997,10.69162209,123.87,123.82,3.36406934]
[1769512085886,3.41612209,123.86,123.81,7.2789]
[1769512086191,3.41612209,123.86,123.81,10.64296934]
[1769512086894,3.41612209,123.86,123.81,3.36406934]
[1769512087897,10.69222209,123.86,123.81,3.36406934]
[1769512089794,10.69222209,123.86,123.81,5.06933521]
[1769512093902,3.41612209,123.86,123.81,12.34823521]
[1769512094093,3.41612209,123.86,123.82,3.36406934]
[1769512094297,3.41612209,123.86,123.82,5.06933521]
[1769512097503,10.69252209,123.86,123.8,303.66406934]
[1769512097706,10.69252209,123.86,123.8,305.36933521]
[1769512098808,10.69252209,123.86,123.81,3.36406934]
[1769512102410,10.69252209,123.86,123.81,5.06933521]
[1769512109727,10.69252209,123.86,123.82,1.70526587]
[1769512111229,10.69252209,123.86,123.81,5.06933521]
[1769512112128,3.41612209,123.86,123.81,5.06933521]
[1769512118736,3.41612209,123.86,123.81,12.62937074]
[1769512126941,3.41612209,123.86,123.81,19.90837074]
[1769512127840,3.41612209,123.86,123.82,7.56003553]
[1769512134045,3.41612209,123.86,123.81,18.20310487]